bitfinex-derivatives/quotes_BTCF0:USTF0_20250406
["timestamp","ask_amount","ask_price","bid_price","bid_amount"]
[1743964708489,0.332,79737.0,79713.0,0.00011027]
[1743964708689,0.3608,79720.0,79719.0,0.12072]
[1743964708884,0.53324,79720.0,79685.0,0.1794]
[1743964709092,0.3608,79694.0,79691.0,0.1917]
[1743964709391,0.17168,79693.0,79692.0,0.1934]
[1743964709692,0.1726,79693.0,79692.0,0.27068]
[1743964709894,0.36841938,79693.0,79692.0,0.58545934]
[1743964710293,0.37796573,79693.0,79692.0,0.58545934]
[1743964710594,0.73606573,79693.0,79663.0,0.63236289]
[1743964710896,0.7216,79670.0,79664.0,0.3947]
[1743964711094,0.7216,79670.0,79669.0,0.18932927]
[1743964711394,0.7216,79670.0,79669.0,0.52]
[1743964711395,0.89328,79670.0,79669.0,0.52]
[1743964711585,0.89328,79670.0,79669.0,0.70862053]
[1743964711785,0.53248,79670.0,79669.0,0.83413907]
[1743964711990,0.53360001,79670.0,79669.0,0.92153734]
[1743964712186,0.17280001,79670.0,79669.0,0.92153734]
[1743964712385,0.3608,79675.0,79669.0,0.92153734]
[1743964712586,0.3608,79675.0,79670.0,0.1998]
[1743964712886,0.17164,79674.0,79670.0,0.9398]
[1743964713194,0.17164,79674.0,79671.0,0.31330615]
[1743964713395,0.17164,79674.0,79671.0,1.21820615]
[1743964713586,0.17164,79674.0,79672.0,0.1926]
[1743964713892,0.17164,79674.0,79672.0,0.9926]
[1743964714199,0.17264,79674.0,79673.0,0.51213835]
[1743964714390,0.17364,79674.0,79673.0,1.26213835]
[1743964714590,0.17364,79674.0,79673.0,1.45473835]
[1743964714591,0.002,79674.0,79673.0,1.45473835]
[1743964714795,0.002,79674.0,79673.0,1.60473835]
[1743964715087,0.17164,79679.0,79673.0,1.54277662]
[1743964715292,0.001,79674.0,79673.0,1.54277662]
[1743964715997,0.002,79674.0,79673.0,1.54277662]
[1743964716192,0.3608,79682.0,79673.0,1.54277662]
[1743964716389,0.1716,79698.0,79680.0,0.3608]
[1743964716692,0.36418967,79692.0,79681.0,0.3947]
[1743964716898,0.3608,79701.0,79687.0,0.3608]
[1743964717188,0.36168001,79701.0,79694.0,0.3608]
[1743964717387,0.36168001,79701.0,79695.0,0.3943]
[1743964717587,0.36168001,79701.0,79695.0,1.45928903]
[1743964717796,0.00088001,79701.0,79695.0,1.45928903]
[1743964717986,0.1857,79700.0,79695.0,1.3966873]
[1743964718593,0.001,79701.0,79695.0,1.3966873]
[1743964718988,0.001,79701.0,79695.0,1.4016873]
[1743964719595,0.001,79700.0,79695.0,1.4066873]
[1743964720094,0.002,79701.0,79695.0,1.4066873]
[1743964720693,0.001,79700.0,79695.0,1.4066873]
[1743964721091,0.001,79700.0,79695.0,1.33908557]
[1743964721292,0.1977,79700.0,79695.0,1.34408557]
[1743964721491,0.001,79700.0,79695.0,1.34408557]
[1743964722099,0.002,79700.0,79695.0,1.34408557]
[1743964722685,0.002,79700.0,79695.0,1.33908557]
[1743964722892,0.001,79701.0,79698.0,0.3608]
[1743964723197,0.1877,79715.0,79698.0,0.3608]
[1743964723198,0.20383853,79730.0,79698.0,1.08168]
[1743964723387,0.17144,79724.0,79711.0,0.3608]
[1743964723589,0.59103853,79730.0,79712.0,0.198]
[1743964723590,0.17144,79729.0,79712.0,0.198]
[1743964723789,0.04582817,79730.0,79719.0,0.3608]
[1743964723993,0.04582817,79730.0,79720.0,0.198]
[1743964724300,0.2496667,79730.0,79721.0,9.459e-05]
[1743964724596,0.2496667,79730.0,79721.0,0.66097459]
[1743964724597,0.3608,79724.0,79721.0,0.66097459]
[1743964724799,0.3872,79723.0,79722.0,0.31323351]
[1743964724992,0.3872,79723.0,79722.0,0.65411351]
[1743964725801,0.3872,79723.0,79722.0,0.52411351]
[1743964726301,0.3882,79723.0,79722.0,0.53111351]
[1743964726806,0.3882,79723.0,79722.0,0.73911351]
[1743964727097,0.5382,79723.0,79722.0,0.46851178]
[1743964727299,0.5382,79723.0,79722.0,0.4631215]
[1743964727491,0.3882,79723.0,79722.0,0.4631215]
[1743964727687,0.3872,79723.0,79722.0,0.4581215]
[1743964727890,0.17236,79723.0,79722.0,0.8731215]
[1743964728090,0.17236,79723.0,79722.0,1.2647215]
[1743964728287,0.001,79723.0,79722.0,1.2647215]
[1743964728693,0.21718817,79730.0,79722.0,1.2597215]
[1743964729005,0.21718817,79730.0,79722.0,1.6255215]
[1743964729193,0.3727,79729.0,79722.0,0.8711215]
[1743964729397,0.3727,79729.0,79722.0,0.8731215]
[1743964729805,0.3727,79729.0,79722.0,0.8761215]
[1743964729996,0.3727,79729.0,79722.0,0.81351977]
[1743964730695,0.001,79723.0,79722.0,0.81351977]
[1743964730892,0.001,79723.0,79722.0,0.80851977]
[1743964730893,0.3618,79723.0,79722.0,0.80851977]
[1743964731100,0.3618,79723.0,79722.0,0.81351977]
[1743964731398,0.7335,79729.0,79722.0,0.80851977]
[1743964731608,0.7345,79729.0,79722.0,0.81351977]
[1743964732103,0.3618,79729.0,79722.0,0.81351977]
[1743964732505,0.3618,79729.0,79722.0,0.81251977]
[1743964732803,0.001,79723.0,79722.0,0.81251977]
[1743964733107,0.001,79723.0,79722.0,0.74991804]
[1743964733403,0.17124,79735.0,79722.0,1.47393991]
[1743964733700,0.17124,79735.0,79734.0,0.3608]
[1743964733897,0.3608,79735.0,79722.0,0.70305991]
[1743964734098,0.3608,79735.0,79722.0,0.8461]
[1743964734299,0.3608,79735.0,79723.0,0.3144269]
[1743964734500,0.001,79729.0,79723.0,1.0444269]
[1743964735104,0.40797699,79735.0,79723.0,1.0444269]
[1743964735309,0.40961699,79735.0,79723.0,1.0450669]
[1743964736000,0.001,79729.0,79723.0,1.0540669]
[1743964736200,0.001,79729.0,79723.0,0.99146517]
[1743964737008,0.001,79729.0,79723.0,0.98746517]
[1743964737209,0.001,79729.0,79723.0,0.99146517]
[1743964737511,0.3608,79733.0,79724.0,0.2396889]
[1743964737803,0.3608,79733.0,79724.0,0.8803289]
[1743964738004,0.3608,79733.0,79724.0,1.0303289]
[1743964738410,0.3608,79733.0,79724.0,1.03986677]
[1743964739108,0.3608,79725.0,79724.0,0.81772717]
[1743964739309,0.36144,79725.0,79724.0,0.82872717]
[1743964739506,0.36144,79725.0,79724.0,1.01746126]
[1743964739808,0.3608,79725.0,79724.0,1.14288692]
[1743964740417,0.3618,79725.0,79724.0,1.14288692]
[1743964740712,0.001,79725.0,79724.0,1.13688692]
[1743964740907,0.001,79725.0,79724.0,1.06579975]
[1743964741111,0.00164,79725.0,79724.0,1.06579975]
[1743964741515,0.18354,79725.0,79724.0,1.06579975]
[1743964741815,0.35354,79725.0,79724.0,1.06079975]
[1743964742019,0.35354,79725.0,79724.0,1.06679975]
[1743964742313,0.35354,79725.0,79724.0,0.97599946]
[1743964742616,0.35354,79725.0,79724.0,0.97299946]
[1743964743017,0.35354,79725.0,79724.0,0.96999946]
[1743964743315,0.35354,79725.0,79724.0,0.97299946]
[1743964744523,0.00064,79725.0,79724.0,1.1049589]
[1743964744720,0.3608,79727.0,79724.0,1.2549589]
[1743964744921,0.3608,79727.0,79724.0,1.1049589]
[1743964745419,0.36156,79727.0,79724.0,1.04235717]
[1743964745623,0.36156,79727.0,79724.0,1.01039773]
[1743964746211,0.36156,79727.0,79724.0,1.15739773]
[1743964746412,0.36156,79727.0,79724.0,1.16039773]
[1743964746614,0.36156,79727.0,79724.0,1.01039773]
[1743964747425,0.36156,79727.0,79724.0,1.00439773]
[1743964747617,0.36156,79727.0,79724.0,1.01039773]
[1743964748312,0.36156,79727.0,79724.0,0.947796]
[1743964749909,0.3762,79726.0,79724.0,0.947796]
[1743964750114,0.37684,79726.0,79724.0,0.947796]
[1743964750924,0.37684,79726.0,79724.0,0.941796]
[1743964751120,0.37684,79726.0,79724.0,0.947796]
[1743964751323,0.00064,79726.0,79724.0,0.88519427]
[1743964751519,0.1959,79725.0,79724.0,0.88519427]
[1743964751721,0.00064,79725.0,79724.0,0.88519427]
[1743964752025,0.00064,79725.0,79724.0,1.5400983]
[1743964752216,0.3608,79738.0,79724.0,1.7364983]
[1743964752418,0.3608,79729.0,79724.0,1.2256983]
[1743964752923,0.3608,79738.0,79724.0,1.3756983]
[1743964753123,0.3608,79736.0,79724.0,1.1792983]
[1743964753326,0.3608,79736.0,78864.0,0.00447678]
[1743964753327,0.30103,79706.0,79705.0,0.5956212]
[1743964753525,0.83355,79706.0,79671.0,0.00188256]
[1743964753720,0.7216,79676.0,79675.0,0.82169679]
[1743964753916,0.7077419,79676.0,79675.0,0.82169679]
[1743964754119,1.06710111,79676.0,79675.0,0.14067405]
[1743964754319,0.25086,79660.0,79648.0,0.38690821]
[1743964754632,0.97246,79649.0,79648.0,1.15766821]
[1743964754832,0.7232,79649.0,79648.0,1.15766821]
[1743964755023,0.9135,79649.0,79648.0,1.34656466]
[1743964755223,0.9135,79649.0,79648.0,1.47222413]
[1743964755621,0.9135,79649.0,79648.0,1.08531592]
[1743964755821,0.9135,79649.0,79648.0,1.09131592]
[1743964756931,0.9135,79649.0,79648.0,1.19131592]
[1743964757429,0.9135,79649.0,79648.0,1.13471419]
[1743964758020,0.5527,79649.0,79648.0,1.12871419]
[1743964758229,0.5527,79649.0,79648.0,1.13471419]
[1743964758629,0.00018822,79656.0,79648.0,1.28006781]
[1743964758828,0.1801,79655.0,79648.0,1.28006781]
[1743964759026,0.18118,79655.0,79649.0,0.01708885]
[1743964759229,0.18118,79655.0,79650.0,0.01708885]
[1743964759531,0.3608,79653.0,79651.0,0.01708885]
[1743964759732,0.3608,79653.0,79652.0,0.01708885]
[1743964759937,0.3608,79653.0,79652.0,1.21386445]
[1743964760234,0.3608,79653.0,79652.0,1.06934806]
[1743964760235,0.36188,79653.0,79652.0,1.06934806]
[1743964760442,0.36188,79653.0,79652.0,1.09489339]
[1743964760734,0.54198,79653.0,79652.0,1.09489339]
[1743964762132,0.54198,79653.0,79652.0,1.10689339]
[1743964762325,0.1916,79674.0,79652.0,1.75428237]
[1743964762525,0.1874,79667.0,79664.0,0.3608]
[1743964762730,0.1931,79666.0,79664.0,1.09144]
[1743964762935,0.36156,79666.0,79665.0,0.20604519]
[1743964763126,0.36156,79666.0,79665.0,1.17571398]
[1743964763325,0.55466,79666.0,79665.0,1.17571398]
[1743964763621,0.41912921,79676.0,79665.0,1.24494039]
[1743964763828,0.1931,79675.0,79667.0,0.1]
[1743964764021,0.1931,79675.0,79667.0,0.82]
[1743964764022,0.5539,79675.0,79667.0,0.82]
[1743964764243,0.55454,79675.0,79668.0,0.32563575]
[1743964764534,0.55454,79675.0,79668.0,1.2019206]
[1743964765635,0.3756,79674.0,79668.0,1.0726183]
[1743964765837,0.30103,79669.0,79668.0,1.0726183]
[1743964766031,0.30171,79669.0,79668.0,1.0726183]
[1743964766334,0.67731,79669.0,79668.0,1.0726183]
[1743964766531,0.67731,79669.0,79668.0,1.01001657]
[1743964766723,0.00068,79669.0,79668.0,1.15382205]
[1743964766925,0.00068,79669.0,79668.0,1.14882205]
[1743964767125,0.00068,79669.0,79668.0,1.15382205]
[1743964767328,0.00068,79669.0,79668.0,1.15182205]
[1743964767528,0.00068,79669.0,79668.0,1.15382205]
[1743964767737,0.00068,79669.0,79668.0,1.14882205]
[1743964767937,0.00068,79669.0,79668.0,1.15282205]
[1743964768131,0.00068,79669.0,79668.0,1.15882205]
[1743964768529,0.00068,79669.0,79668.0,1.24682205]
[1743964768730,0.00068,79669.0,79668.0,1.25882205]
[1743964769223,0.00068,79669.0,79668.0,1.11501657]
[1743964769422,0.37628,79669.0,79668.0,1.11501657]
[1743964769627,0.42645,79669.0,79668.0,1.05241484]
[1743964769923,0.37628,79669.0,79668.0,1.05241484]
[1743964770127,0.00068,79669.0,79668.0,1.19355053]
[1743964770626,0.00068,79669.0,79668.0,1.05241484]
[1743964770837,0.37628,79669.0,79668.0,1.04641484]
[1743964771136,0.37628,79669.0,79668.0,1.05241484]
[1743964771439,0.30103,79665.0,79654.0,0.3608]
[1743964771738,0.44846,79664.0,79654.0,0.64144]
[1743964771934,0.30103,79663.0,79655.0,0.31418592]
[1743964772136,0.67739,79663.0,79655.0,0.97482592]
[1743964772435,0.7566,79662.0,79655.0,0.97482592]
[1743964772635,0.3608,79660.0,79655.0,0.91222419]
[1743964772831,0.25086,79656.0,79655.0,0.91222419]
[1743964773034,0.30179,79656.0,79655.0,0.91222419]
[1743964773340,1.05839,79656.0,79655.0,0.01222419]
[1743964773528,0.67663,79655.0,79651.0,0.00018822]
[1743964773837,0.67663,79655.0,79651.0,0.69082822]
[1743964773838,0.66183,79652.0,79651.0,0.69082822]
[1743964774040,0.66287001,79652.0,79651.0,0.69090822]
[1743964774352,0.30103,79635.0,79627.0,0.1]
[1743964774526,0.00120001,79635.0,79627.0,0.79]
[1743964774731,0.00120001,79635.0,79628.0,0.18778886]
[1743964774732,0.25086,79631.0,79628.0,0.18778886]
[1743964774927,0.25206001,79631.0,79628.0,1.22220809]
[1743964775134,0.3756,79630.0,79629.0,0.00014837]
[1743964775331,0.3756,79630.0,79629.0,0.75014837]
[1743964775531,0.3756,79630.0,79629.0,1.12616215]
[1743964775738,0.67663,79630.0,79629.0,1.00093965]
[1743964776035,0.67663,79630.0,79607.0,0.3608]
[1743964776036,0.30103,79608.0,79607.0,0.32831502]
[1743964776242,0.66213335,79608.0,79607.0,0.91831502]
[1743964776426,0.00120001,79608.0,79607.0,0.91831502]
[1743964776630,0.17036,79624.0,79607.0,1.23334913]
[1743964776832,0.3756,79629.0,79616.0,0.3608]
[1743964777031,0.28533334,79621.0,79617.0,0.1825]
[1743964777330,0.3608,79620.0,79617.0,0.94945252]
[1743964777526,0.28533334,79618.0,79617.0,0.94945252]
[1743964777938,0.66093334,79618.0,79617.0,0.94945252]
[1743964778246,0.85833334,79618.0,79617.0,1.08005304]
[1743964778431,0.85833334,79618.0,79617.0,1.18005304]
[1743964778631,0.85953335,79618.0,79617.0,1.11745131]
[1743964778836,0.85953335,79618.0,79617.0,1.11245131]
[1743964778837,0.86053335,79618.0,79617.0,1.11245131]
[1743964779036,0.86153335,79618.0,79617.0,1.11745131]
[1743964780736,0.57620001,79618.0,79617.0,1.11745131]
[1743964780937,0.20060001,79618.0,79617.0,1.11745131]
[1743964781136,0.002,79618.0,79617.0,1.11745131]
[1743964781439,0.002,79618.0,79617.0,1.48805131]
[1743964781640,0.002,79618.0,79617.0,1.42544958]
[1743964781849,0.001,79618.0,79617.0,1.24204958]
[1743964782139,0.002,79618.0,79617.0,1.23704958]
[1743964782439,0.002,79618.0,79617.0,1.42544958]
[1743964782639,0.002,79618.0,79617.0,1.24204958]
[1743964783141,0.002,79618.0,79617.0,1.42544958]
[1743964783533,0.002,79618.0,79617.0,1.24204958]
[1743964783939,0.66293334,79618.0,79617.0,1.24204958]
[1743964784340,0.66193334,79618.0,79617.0,1.05484958]
[1743964784736,0.66093334,79618.0,79617.0,0.98724785]
[1743964784934,0.66193334,79618.0,79617.0,0.89224785]
[1743964787536,0.66313335,79618.0,79617.0,0.89224785]
[1743964787734,0.66313335,79618.0,79617.0,0.82964612]
[1743964788049,0.28533334,79616.0,79600.0,0.05324535]
[1743964788345,0.28533334,79616.0,79600.0,0.76324535]
[1743964788346,0.28533334,79601.0,79600.0,0.76324535]
[1743964788544,0.28533334,79601.0,79600.0,0.66324535]
[1743964788745,0.66093334,79601.0,79600.0,0.85099833]
[1743964788932,0.56127335,79601.0,79588.0,0.3608]
[1743964789242,0.64613334,79589.0,79588.0,0.32480535]
[1743964789433,0.64613334,79589.0,79588.0,0.75]
[1743964789636,0.64613334,79589.0,79588.0,0.93734653]
[1743964789839,0.3608,79600.0,79588.0,1.42377388]
[1743964790040,0.3608,79600.0,79589.0,0.3919]
[1743964790041,0.36200001,79600.0,79589.0,0.3919]
[1743964790245,0.3608,79600.0,79590.0,9.022e-05]
[1743964790438,0.3612,79600.0,79590.0,0.9095394]
[1743964790840,0.3612,79600.0,79591.0,0.06304456]
[1743964791050,0.3612,79600.0,79591.0,0.74304456]
[1743964791349,0.3632,79600.0,79592.0,0.18944918]
[1743964791546,0.03447334,79593.0,79592.0,1.09254918]
[1743964791742,0.28533334,79593.0,79592.0,1.09254918]
[1743964792142,0.25086,79593.0,79592.0,1.21818915]
[1743964792347,0.28533334,79593.0,79592.0,1.21818915]
[1743964793240,0.1904,79599.0,79592.0,1.21818915]
[1743964793435,0.28533334,79593.0,79592.0,1.03508915]
[1743964793642,0.64613334,79593.0,79592.0,0.26752998]
[1743964793835,0.79713334,79593.0,79592.0,0.20592825]
[1743964794043,0.96854703,79593.0,79592.0,0.39368823]
[1743964794437,0.96854703,79593.0,79581.0,0.18466001]
[1743964794438,0.28533334,79582.0,79581.0,0.18466001]
[1743964794638,0.3608,79584.0,79581.0,0.84466001]
[1743964794836,0.28533334,79582.0,79581.0,1.03430126]
[1743964795040,0.28533334,79582.0,79581.0,1.15994123]
[1743964795553,0.70398803,79582.0,79581.0,0.97541945]
[1743964796052,0.70438803,79582.0,79581.0,0.97541945]
[1743964796244,0.85566803,79582.0,79581.0,0.44570945]
[1743964796437,0.85566803,79582.0,79581.0,0.43444308]
[1743964796642,0.70566803,79582.0,79581.0,0.43444308]
[1743964796945,0.60480803,79582.0,79581.0,0.13472983]
[1743964797135,0.57033469,79582.0,79555.0,0.3608]
[1743964797342,0.03447334,79556.0,79555.0,0.62]
[1743964797541,0.5308,79556.0,79530.0,0.3608]
[1743964797746,0.3608,79535.0,79530.0,0.73]
[1743964797950,0.3608,79535.0,79531.0,0.00010528]
[1743964798151,0.3608,79532.0,79531.0,0.60211426]
[1743964798751,0.5108,79532.0,79531.0,0.56491426]
[1743964799051,0.51200001,79532.0,79531.0,0.56491426]
[1743964799247,0.92182674,79532.0,79531.0,0.08969323]
[1743964799441,1.09182674,79532.0,79531.0,0.11433435]
[1743964799636,1.09434145,79532.0,79508.0,0.18039503]
[1743964799844,0.3608,79509.0,79508.0,0.8477933]
[1743964800347,0.0001886,79516.0,79508.0,1.16237262]
[1743964800751,0.0001886,79516.0,79509.0,0.0001553]
[1743964800953,0.05254144,79532.0,79515.0,0.3608]
[1743964801248,0.05254144,79532.0,79523.0,0.3608]
[1743964801452,0.05254144,79532.0,79524.0,0.1844]
[1743964801656,0.05254144,79532.0,79524.0,1.00941843]
[1743964801860,0.3608,79528.0,79524.0,0.54861843]
[1743964802160,0.3608,79528.0,79525.0,0.12574187]
[1743964802453,0.3608,79530.0,79525.0,1.04174187]
[1743964802649,0.36208,79530.0,79526.0,0.18793735]
[1743964802854,0.36208,79530.0,79526.0,0.90533562]
[1743964803060,0.05154144,79532.0,79527.0,0.196]
[1743964803350,0.3608,79548.0,79527.0,0.196]
[1743964803351,0.46964721,79548.0,79536.0,0.1]
[1743964803541,0.46964721,79548.0,79536.0,1.1508]
[1743964803745,0.51923854,79548.0,79544.0,0.1]
[1743964803944,0.51923854,79548.0,79545.0,0.196]
[1743964804146,0.51923854,79548.0,79545.0,1.31909308]
[1743964804652,0.51923854,79548.0,79546.0,0.12571974]
[1743964804849,0.51923854,79548.0,79546.0,0.88571974]
[1743964805153,0.52003854,79548.0,79547.0,0.57905992]
[1743964805353,0.52003854,79548.0,79547.0,1.16373992]
[1743964805853,0.52003854,79548.0,79547.0,1.28945255]
[1743964806153,0.00031662,79554.0,79547.0,1.68765082]
[1743964806343,0.3608,79572.0,79548.0,0.1886]
[1743964806551,0.3608,79572.0,79559.0,0.3608]
[1743964806751,0.3608,79572.0,79560.0,0.1886]
[1743964806945,0.3608,79572.0,79560.0,1.23434708]
[1743964806946,0.04998341,79564.0,79560.0,1.23434708]
[1743964807150,0.04998341,79564.0,79560.0,1.14584291]
[1743964807359,0.3608,79572.0,79561.0,0.00015962]
[1743964807656,0.10884721,79578.0,79570.0,0.3608]
[1743964807657,0.15743345,79578.0,79570.0,0.3608]
[1743964807856,0.10972722,79578.0,79570.0,1.13168]
[1743964808056,0.3608,79575.0,79571.0,0.18891377]
[1743964808251,0.3608,79575.0,79561.0,0.00015962]
[1743964808252,0.3608,79563.0,79524.0,0.17]
[1743964808452,0.3608,79538.0,79526.0,0.3608]
[1743964808655,0.36188,79538.0,79531.0,0.14491006]
[1743964808859,0.0001886,79540.0,79534.0,0.3608]
[1743964809154,0.3608,79556.0,79535.0,0.00012005]
[1743964809350,0.36196,79556.0,79542.0,0.3608]
[1743964809649,0.3608,79545.0,79542.0,0.68116]
[1743964809856,0.3608,79545.0,79543.0,0.32947569]
[1743964809857,0.36192001,79545.0,79543.0,0.32947569]
[1743964810055,0.00112001,79545.0,79543.0,1.21521124]
[1743964810261,0.0001886,79551.0,79544.0,0.3608]
[1743964810554,0.0001886,79551.0,79544.0,1.249]
[1743964810758,0.001,79556.0,79545.0,0.18912781]
[1743964810955,0.001,79556.0,79545.0,1.39065747]
[1743964811162,0.001,79556.0,79545.0,1.24574518]
[1743964811959,0.3608,79546.0,79545.0,1.18314345]
[1743964812157,0.3608,79550.0,79545.0,1.00224345]
[1743964812360,0.3608,79546.0,79545.0,0.58224345]
[1743964813158,0.3608,79546.0,79545.0,0.56224345]
[1743964813349,0.3608,79546.0,79545.0,1.00224345]
[1743964813553,0.3628,79546.0,79545.0,1.00224345]
[1743964813949,0.3628,79546.0,79513.0,0.01]
[1743964813950,0.9314,79546.0,79513.0,0.01]
[1743964814153,0.54316,79545.0,79514.0,0.1885]
[1743964814456,0.7216,79515.0,79514.0,1.06421421]
[1743964814761,0.89152,79515.0,79514.0,0.88571421]
[1743964814961,1.04165909,79515.0,79514.0,1.01214196]
[1743964815267,1.04241909,79515.0,79514.0,1.01282196]
[1743964815458,0.89241909,79515.0,79514.0,1.01282196]
[1743964815657,0.72249909,79515.0,79514.0,1.01282196]
[1743964815858,1.04245909,79515.0,79514.0,1.01282196]
[1743964816468,0.89245909,79515.0,79514.0,1.01282196]
[1743964816665,0.89345909,79515.0,79514.0,1.01282196]
[1743964817357,0.89245909,79515.0,79514.0,1.01282196]
[1743964817956,1.46105909,79515.0,79514.0,0.31542369]
[1743964818261,1.46105909,79515.0,79514.0,0.12576322]
[1743964818562,1.46105909,79515.0,79502.0,0.12349827]
[1743964818767,0.95025909,79515.0,79514.0,0.31347585]
[1743964818968,1.31105909,79515.0,79514.0,0.27072]
[1743964819163,1.46105909,79515.0,79514.0,0.39577271]
[1743964819462,1.31105909,79515.0,79514.0,0.58412534]
[1743964819664,1.31205909,79515.0,79514.0,0.58412534]
[1743964820366,1.31105909,79515.0,79514.0,0.57928539]
[1743964821059,1.31105909,79515.0,79514.0,0.51668366]
[1743964821965,1.31105909,79515.0,79514.0,0.96668366]
[1743964823270,0.89245909,79515.0,79514.0,0.51668366]
[1743964823759,0.89245909,79515.0,79514.0,0.22]
[1743964824064,0.89245909,79515.0,79514.0,0.47069746]
[1743964824264,0.87249909,79515.0,79501.0,9.871e-05]
[1743964824464,0.7216,79502.0,79501.0,0.63009871]
[1743964824667,0.7216,79502.0,79501.0,0.62930305]
[1743964824870,0.7216,79502.0,79501.0,0.94276908]
[1743964825057,0.72276,79502.0,79501.0,0.94392908]
[1743964825665,0.72276,79502.0,79501.0,0.9440533]
[1743964825868,0.77262245,79502.0,79501.0,0.9440533]
[1743964826765,0.77362245,79502.0,79501.0,0.9440533]
[1743964827266,0.77362245,79502.0,79501.0,1.25290291]
[1743964828862,0.77362245,79502.0,79501.0,0.88120291]
[1743964829265,0.77362245,79502.0,79501.0,1.26500291]
[1743964829868,0.77362245,79502.0,79501.0,0.88120291]
[1743964830171,0.77362245,79502.0,79501.0,0.81835252]
[1743964830374,0.77362245,79502.0,79501.0,0.95282329]
[1743964830572,0.77362245,79502.0,79501.0,0.78872329]
[1743964830872,0.77362245,79502.0,79501.0,0.59232329]
[1743964831071,0.77362245,79502.0,79501.0,0.96475025]
[1743964831268,0.77362245,79502.0,79455.0,0.3608]
[1743964831269,1.34222245,79502.0,79455.0,0.3608]
[1743964831671,0.2081,79501.0,79475.0,0.18975339]
[1743964832271,0.7216,79476.0,79475.0,0.0195524]
[1743964832477,0.7216,79476.0,79468.0,0.27953718]
[1743964832478,2.78567665,79476.0,79468.0,0.27953718]
[1743964832678,0.3608,79469.0,79468.0,0.16018871]
[1743964832970,0.3608,79469.0,79468.0,0.09738871]
[1743964833271,0.2081,79461.0,79428.0,0.31206578]
[1743964833475,0.5689,79429.0,79405.0,0.16638992]
[1743964833667,0.66073266,79460.0,79405.0,0.16638992]
[1743964833668,0.3608,79406.0,79405.0,0.16638992]
[1743964833870,0.53072,79406.0,79405.0,0.87638992]
[1743964834071,0.53072,79406.0,79405.0,1.1912727]
[1743964834275,0.73882,79406.0,79405.0,0.59488278]
[1743964834487,0.93819773,79406.0,79405.0,0.24747911]
[1743964834683,1.01041163,79406.0,79405.0,0.04747517]
[1743964834886,1.00809773,79406.0,79405.0,0.17341103]
[1743964835185,1.19615925,79406.0,79365.0,0.29]
[1743964835384,0.3608,79380.0,79365.0,0.76]
[1743964835577,0.3608,79367.0,79365.0,0.76]
[1743964835783,0.3608,79367.0,79366.0,0.31419873]
[1743964835979,0.3608,79367.0,79366.0,0.52105222]
[1743964836198,0.51095375,79367.0,79326.0,0.63]
[1743964836491,0.3608,79331.0,79328.0,0.5691]
[1743964836687,0.3608,79340.0,79329.0,0.37029284]
[1743964836894,0.3608,79340.0,79329.0,1.22629137]
[1743964837092,0.3608,79330.0,79329.0,1.22629137]
[1743964837290,0.04912757,79342.0,79329.0,1.22644748]
[1743964837586,0.00018898,79342.0,79329.0,1.22644748]
[1743964837890,0.21877131,79356.0,79331.0,0.3608]
[1743964838191,0.00015375,79367.0,79355.0,0.3608]
[1743964838390,0.3608,79377.0,79364.0,0.3608]
[1743964838579,0.0004,79384.0,79364.0,1.1208]
[1743964838782,0.3608,79377.0,79365.0,0.32071907]
[1743964838994,0.00018898,79382.0,79373.0,0.3608]
[1743964839196,0.3608,79394.0,79381.0,0.3608]
[1743964839396,0.3608,79393.0,79388.0,0.0001044]
[1743964839597,0.36232,79393.0,79388.0,0.2901044]
[1743964839787,0.36232,79393.0,79389.0,0.18929141]
[1743964839986,0.00152,79393.0,79389.0,0.92929141]
[1743964840290,0.000152,79396.0,79390.0,0.12595965]
[1743964840491,0.3608,79409.0,79395.0,0.3608]
[1743964840680,0.00156001,79409.0,79403.0,0.3608]
[1743964840878,0.3608,79414.0,79403.0,0.69]
[1743964841088,0.3608,79409.0,79404.0,0.3148832]
[1743964841291,0.3608,79409.0,79404.0,0.6448832]
[1743964841487,0.18139615,79408.0,79404.0,0.05393515]
[1743964841686,0.18287615,79408.0,79405.0,0.31430671]
[1743964841882,0.33287615,79408.0,79399.0,0.00018898]
[1743964842087,0.3608,79400.0,79399.0,0.22018898]
[1743964842386,1.79944,79400.0,79373.0,0.17624568]
[1743964842587,0.3608,79386.0,79373.0,0.86624568]
[1743964842790,0.3608,79386.0,79383.0,0.18871173]
[1743964843094,0.0813,79385.0,79383.0,0.29]
[1743964843489,0.3608,79386.0,79384.0,0.18871173]
[1743964843691,0.3608,79386.0,79384.0,0.59468883]
[1743964843993,0.3608,79386.0,79384.0,0.4059771]
[1743964844290,0.07008,79385.0,79384.0,0.63]
[1743964844798,0.17008,79385.0,79384.0,0.94390404]
[1743964845198,0.07008,79388.0,79384.0,0.94390404]
[1743964845400,0.00018898,79392.0,79387.0,0.29794961]
[1743964845702,0.3608,79433.0,79388.0,0.552]
[1743964845893,0.17008,79426.0,79419.0,0.3608]
[1743964846093,0.04867927,79429.0,79419.0,1.1408]
[1743964846295,0.17008,79428.0,79420.0,0.1912]
[1743964846595,0.05003818,79435.0,79423.0,0.3608]
[1743964846795,0.3608,79425.0,79423.0,0.71]
[1743964846999,0.3608,79425.0,79424.0,0.1878597]
[1743964847298,0.3608,79425.0,79424.0,0.1258986]
[1743964847299,0.51311345,79425.0,79424.0,0.1258986]
[1743964847492,0.93319345,79425.0,79416.0,0.00018886]
[1743964847691,0.3608,79417.0,79416.0,0.06018886]
[1743964847895,0.78088,79417.0,79416.0,0.06018886]
[1743964848091,0.93088,79417.0,79416.0,0.18610727]
[1743964848393,0.93088,79417.0,79410.0,9.068e-05]
[1743964848604,0.3608,79411.0,79370.0,0.13]
[1743964848798,0.3608,79376.0,79370.0,0.66]
[1743964849096,0.17012,79380.0,79371.0,0.12591841]
[1743964849304,0.3608,79377.0,79371.0,1.06360328]
[1743964849595,0.17012,79380.0,79372.0,0.00013919]
[1743964849798,0.00018898,79382.0,79372.0,0.75013919]
[1743964850102,0.3608,79377.0,79373.0,0.18944865]
[1743964850400,0.00018898,79382.0,79373.0,0.94944865]
[1743964850607,0.00166898,79382.0,79373.0,1.09944865]
[1743964850794,0.00166898,79382.0,79374.0,0.12598266]
[1743964850995,0.00166898,79382.0,79374.0,1.09727975]